bitfinex-derivatives/quotes_BTCF0:USTF0_20251023
["timestamp","ask_amount","ask_price","bid_price","bid_amount"]
[1761207260712,0.06352,109830.0,109820.0,0.80471992]
[1761207261013,0.12901914,109830.0,109820.0,1.14471992]
[1761207261207,0.12901914,109830.0,109820.0,0.85471992]
[1761207261608,0.06352,109830.0,109820.0,0.85471992]
[1761207262010,0.06352,109830.0,109820.0,1.17707992]
[1761207262713,0.06352,109830.0,109810.0,0.37723928]
[1761207262714,0.05511,109820.0,109810.0,0.37723928]
[1761207263011,0.05511,109820.0,109810.0,0.52499924]
[1761207263409,0.05511,109820.0,109810.0,0.37723928]
[1761207263715,0.60286996,109820.0,109810.0,0.50855996]
[1761207263902,0.52060914,109820.0,109810.0,0.50855996]
[1761207264608,0.6693691,109820.0,109800.0,0.3608]
[1761207264814,0.05734,109810.0,109800.0,0.84612484]
[1761207265005,0.05734,109810.0,109800.0,0.16300484]
[1761207265309,0.05734,109810.0,109800.0,0.52380484]
[1761207265505,0.05734,109810.0,109800.0,0.81380484]
[1761207265706,0.05734,109810.0,109800.0,0.66604488]
[1761207265913,0.05734,109810.0,109800.0,0.9615648]
[1761207267906,0.05834,109810.0,109800.0,0.9615648]
[1761207268708,0.05834,109810.0,109800.0,0.3107648]
[1761207270714,0.05834,109810.0,109800.0,0.6715648]
[1761207272015,0.05834,109810.0,109800.0,0.93365602]
[1761207272509,0.001,109810.0,109800.0,1.59365602]
[1761207273110,0.001,109810.0,109800.0,1.42365602]
[1761207273915,0.001,109810.0,109800.0,1.57205602]
[1761207274616,0.001,109810.0,109800.0,1.59653355]
[1761207276015,0.05834,109810.0,109800.0,1.59653355]
[1761207276217,0.03533,109810.0,109800.0,1.59653355]
[1761207276516,0.01362,109810.0,109800.0,1.59653355]
[1761207277218,0.03533,109810.0,109800.0,1.59653355]
[1761207277619,0.01362,109810.0,109800.0,1.59653355]
[1761207278714,0.03533,109810.0,109800.0,1.59653355]
[1761207279023,0.05834,109810.0,109800.0,1.44877359]
[1761207279223,0.05834,109810.0,109800.0,1.69877359]
[1761207279723,0.05834,109810.0,109800.0,1.67429606]
[1761207280023,0.05834,109810.0,109800.0,1.33365602]
[1761207280323,0.05834,109810.0,109800.0,1.46813355]
[1761207281025,0.05834,109810.0,109800.0,1.29589606]
[1761207281221,0.05834,109810.0,109800.0,1.44365602]
[1761207281623,0.001,109810.0,109800.0,1.63365602]
[1761207281825,0.03533,109810.0,109800.0,1.51037359]
[1761207282024,0.03533,109810.0,109800.0,1.65813355]
[1761207282324,0.01362,109810.0,109800.0,1.65813355]
[1761207284024,0.001,109810.0,109800.0,1.65813355]
[1761207284527,0.001,109810.0,109800.0,1.69077026]
[1761207284826,0.001,109810.0,109800.0,1.65813355]
[1761207285027,0.001,109810.0,109800.0,1.69077026]
[1761207285227,0.06348,109830.0,109800.0,1.78181696]
[1761207285424,0.06348,109830.0,109820.0,1.25590928]
[1761207285727,0.06348,109830.0,109820.0,1.18144955]
[1761207286831,0.06348,109830.0,109820.0,1.15814932]
[1761207287827,0.06348,109830.0,109820.0,1.30590928]
[1761207288427,0.06348,109830.0,109820.0,1.21487988]
[1761207288632,0.06448,109830.0,109820.0,0.50855996]
[1761207288832,0.46448,109830.0,109820.0,0.50855996]
[1761207289528,0.46448,109830.0,109820.0,0.14775996]
[1761207289733,0.05734,109810.0,109800.0,0.52380484]
[1761207289934,0.05734,109810.0,109800.0,0.69486614]
[1761207290628,0.45734,109810.0,109800.0,0.50855996]
[1761207290827,0.45734,109810.0,109800.0,0.53186446]
[1761207291135,0.45734,109810.0,109800.0,0.67962442]
[1761207291742,0.45834,109810.0,109800.0,0.69465391]
[1761207295635,0.45834,109810.0,109800.0,0.33385391]
[1761207295833,0.45834,109810.0,109800.0,0.31882442]
[1761207297626,0.45834,109810.0,109800.0,0.29551992]
[1761207298238,0.96689996,109810.0,109800.0,0.17090262]
[1761207298432,0.05819,109800.0,109790.0,0.50855996]
[1761207298638,0.05819,109800.0,109790.0,0.54709783]
[1761207299029,0.05819,109800.0,109790.0,0.5317047]
[1761207299936,0.05819,109800.0,109790.0,0.14775996]
[1761207299937,0.38031,109800.0,109790.0,0.14775996]
[1761207300835,0.88886996,109800.0,109790.0,0.14775996]
[1761207301035,0.74111,109800.0,109790.0,0.14775996]
[1761207301236,0.38031,109800.0,109790.0,0.18591314]
[1761207301840,0.38031,109800.0,109790.0,0.17090495]
[1761207302543,0.05819,109800.0,109790.0,0.77052441]
[1761207302839,0.41899,109800.0,109790.0,0.17090495]
[1761207303227,0.41899,109800.0,109790.0,0.02314499]
[1761207303444,0.41899,109800.0,109790.0,0.17090495]
[1761207305946,0.05819,109800.0,109790.0,0.17090495]
[1761207313946,0.20594996,109800.0,109790.0,0.17090495]
[1761207314153,0.05819,109790.0,109780.0,0.50855996]
[1761207314355,0.38031,109790.0,109780.0,0.17090945]
[1761207315660,0.38031,109790.0,109780.0,0.17190945]
[1761207316748,0.38031,109790.0,109780.0,0.02414949]
[1761207318151,1.28903021,109790.0,109780.0,0.02414949]
[1761207318355,1.28903021,109790.0,109780.0,0.001]
[1761207318649,1.30337087,109790.0,109780.0,0.001]
[1761207318847,1.51337087,109790.0,109780.0,0.001]
[1761207319245,1.30337087,109790.0,109780.0,0.001]
[1761207319449,0.05819,109760.0,109750.0,0.73999424]
[1761207319648,0.38027,109760.0,109750.0,0.76316424]
[1761207319848,0.38027,109760.0,109750.0,0.44108424]
[1761207320556,0.38027,109760.0,109750.0,0.40844753]
[1761207320963,0.38027,109760.0,109750.0,0.55636774]
[1761207321265,0.38027,109760.0,109750.0,0.55936774]
[1761207321563,0.38027,109760.0,109750.0,0.41244753]
[1761207322366,0.38027,109760.0,109750.0,0.05164753]
[1761207323066,0.38027,109760.0,109750.0,0.19956774]
[1761207323569,0.88899021,109760.0,109750.0,0.05164753]
[1761207323770,0.74107,109760.0,109750.0,0.02717]
[1761207324265,0.75531268,109760.0,109750.0,0.02717]
[1761207325864,0.74107,109760.0,109750.0,0.02717]
[1761207326166,1.28899021,109760.0,109750.0,0.004]
[1761207326468,1.85899021,109760.0,109750.0,0.004]
[1761207326660,1.87332146,109760.0,109750.0,0.004]
[1761207327463,1.87332146,109760.0,109750.0,0.001]
[1761207327664,1.87332146,109760.0,109740.0,0.00455602]
[1761207327665,0.05899,109750.0,109740.0,0.00455602]
[1761207327962,0.56771021,109750.0,109740.0,0.02755359]
[1761207328359,0.41979,109750.0,109740.0,0.02755359]
[1761207329464,0.42079,109750.0,109740.0,0.02755359]
[1761207330370,0.42179,109750.0,109740.0,0.02755359]
[1761207330965,0.42079,109750.0,109740.0,0.02755359]
[1761207331174,0.42179,109750.0,109740.0,0.02755359]
[1761207333370,0.42079,109750.0,109740.0,0.02755359]
[1761207333568,0.42179,109750.0,109740.0,0.02755359]
[1761207334069,0.42079,109750.0,109740.0,0.02755359]
[1761207334266,0.42179,109750.0,109740.0,0.02755359]
[1761207338778,0.06099,109750.0,109740.0,0.33718909]
[1761207338971,0.06099,109750.0,109740.0,0.21374641]
[1761207339572,0.06099,109750.0,109740.0,0.05203112]
[1761207340074,0.06099,109750.0,109740.0,0.02755359]
[1761207340471,0.06099,109750.0,109740.0,0.05203112]
[1761207341379,0.05999,109750.0,109740.0,0.05203112]
[1761207341781,0.05899,109750.0,109740.0,0.05203112]
[1761207341985,0.05999,109750.0,109740.0,0.19995133]
[1761207342186,0.06099,109750.0,109740.0,0.19995133]
[1761207343080,0.06099,109750.0,109740.0,0.65185473]
[1761207343269,0.06099,109750.0,109740.0,0.68449144]
[1761207343469,0.06099,109750.0,109740.0,0.59338804]
[1761207344281,0.06099,109750.0,109740.0,1.08449144]
[1761207344483,0.06099,109750.0,109740.0,0.99338804]
[1761207345181,0.06099,109750.0,109740.0,1.08449144]
[1761207346385,0.05999,109750.0,109740.0,1.06001391]
[1761207346682,0.06099,109750.0,109740.0,1.06001391]
[1761207347182,0.06099,109750.0,109740.0,0.96891051]
[1761207347385,0.06099,109750.0,109740.0,1.01786557]
[1761207347887,0.06099,109750.0,109740.0,1.10896897]
[1761207349185,0.06099,109750.0,109740.0,1.01786557]
[1761207349586,0.06099,109750.0,109740.0,1.10896897]
[1761207350582,0.06099,109750.0,109740.0,0.96104876]
[1761207350883,0.06099,109750.0,109740.0,1.10896897]
[1761207352789,0.06099,109750.0,109740.0,1.43108897]
[1761207354693,0.06099,109750.0,109740.0,1.33998557]
[1761207355383,0.06099,109750.0,109740.0,1.10896897]
[1761207357294,0.06099,109750.0,109740.0,1.01786557]
[1761207357492,0.06099,109750.0,109740.0,0.86994536]
[1761207360296,0.06099,109750.0,109740.0,1.10896897]
[1761207362500,0.06099,109750.0,109740.0,1.01786557]
[1761207362901,0.01502,109750.0,109740.0,1.14688918]
[1761207363199,0.002,109750.0,109740.0,1.37265247]
[1761207363397,0.002,109750.0,109740.0,1.68265247]
[1761207363793,0.002,109750.0,109740.0,1.38681205]
[1761207363992,0.002,109750.0,109740.0,1.67096236]
[1761207364501,0.001,109750.0,109740.0,1.67096236]
[1761207364700,0.001,109750.0,109740.0,2.03176236]
[1761207364895,0.01331,109760.0,109750.0,0.0910891]
[1761207365101,0.01331,109760.0,109750.0,0.94484688]
[1761207365602,0.03589,109760.0,109750.0,0.94484688]
[1761207365796,0.05693,109760.0,109750.0,0.94484688]
[1761207370402,0.03589,109760.0,109750.0,0.94484688]
[1761207370599,0.01331,109760.0,109750.0,0.94484688]
[1761207370803,0.01331,109760.0,109750.0,1.22484688]
[1761207371601,0.03589,109760.0,109750.0,0.94484688]
[1761207371803,0.01331,109760.0,109750.0,0.94484688]
[1761207372105,0.05663,109770.0,109750.0,1.38702508]
[1761207372304,0.05663,109770.0,109760.0,0.23900701]
[1761207372604,0.07850914,109780.0,109770.0,0.0910785]
[1761207372791,0.10138914,109790.0,109780.0,0.0910702]
[1761207372997,0.10138914,109790.0,109780.0,0.59979041]
[1761207373196,0.12242914,109790.0,109780.0,0.92979041]
[1761207373404,0.06549914,109790.0,109780.0,1.29979041]
[1761207373593,0.07880914,109800.0,109790.0,0.0910619]
[1761207373791,0.07880914,109800.0,109790.0,0.56098211]
[1761207373995,0.10138914,109800.0,109790.0,0.92178211]
[1761207374605,0.07880914,109800.0,109790.0,0.92178211]
[1761207374903,0.07980914,109800.0,109790.0,1.02178211]
[1761207375109,0.07980914,109800.0,109790.0,1.20178211]
[1761207376008,0.07980914,109800.0,109790.0,1.21490208]
[1761207376194,0.08080914,109800.0,109790.0,1.21490208]
[1761207377012,0.10338914,109800.0,109790.0,1.21490208]
[1761207377311,0.05893,109800.0,109790.0,1.21490208]
[1761207378305,0.05893,109800.0,109790.0,0.89290208]
[1761207378507,0.05893,109800.0,109790.0,0.93482208]
[1761207378704,0.05893,109800.0,109790.0,0.93476782]
[1761207378905,0.05893,109800.0,109790.0,0.98476782]
[1761207379305,0.05893,109800.0,109790.0,1.27476782]
[1761207379507,0.05893,109800.0,109790.0,1.33263377]
[1761207379707,0.05893,109800.0,109790.0,1.13263377]
[1761207380208,0.01531,109800.0,109790.0,1.40263377]
[1761207380812,0.03789,109800.0,109790.0,1.40263377]
[1761207381513,0.05893,109800.0,109790.0,1.13263377]
[1761207381715,0.05893,109800.0,109790.0,1.33263377]
[1761207382009,0.03789,109800.0,109790.0,1.08263377]
[1761207382206,0.03789,109800.0,109790.0,1.36263377]
[1761207382509,0.05893,109800.0,109790.0,1.36263377]
[1761207384208,0.05893,109800.0,109790.0,1.13263377]
[1761207384515,0.05893,109800.0,109790.0,1.08263377]
[1761207384707,0.05893,109800.0,109790.0,1.32263377]
[1761207388712,0.01331,109810.0,109790.0,1.54857972]
[1761207388912,0.01987914,109820.0,109810.0,0.0910454]
[1761207389109,0.0048,109830.0,109820.0,0.0910372]
[1761207389307,0.0048,109830.0,109820.0,1.21543505]
[1761207389714,0.0048,109830.0,109820.0,0.95871654]
[1761207389913,0.0631,109830.0,109820.0,0.46511869]
[1761207390216,0.7849,109830.0,109820.0,0.61298454]
[1761207390614,0.7849,109830.0,109820.0,0.76085049]
[1761207391204,0.7859,109830.0,109820.0,0.76085049]
[1761207391409,0.7859,109830.0,109820.0,0.37408149]
[1761207391602,0.7859,109830.0,109820.0,0.52194744]
[1761207391808,0.7869,109830.0,109820.0,0.52194744]
[1761207392023,1.37743987,109830.0,109820.0,0.16114744]
[1761207392517,1.22957392,109830.0,109820.0,0.16114744]
[1761207392719,0.86877392,109830.0,109820.0,0.10431859]
[1761207393618,1.22957392,109830.0,109820.0,0.10431859]
[1761207393919,0.86877392,109830.0,109820.0,0.10431859]
[1761207395121,0.86877392,109830.0,109820.0,0.01328149]
[1761207395617,0.86877392,109830.0,109820.0,0.10431859]
[1761207395818,0.7869,109830.0,109820.0,0.10431859]
[1761207397524,0.7869,109830.0,109820.0,0.01328149]
[1761207398216,0.86877392,109830.0,109820.0,0.01328149]
[1761207398624,1.22957392,109830.0,109820.0,0.01328149]
[1761207398821,1.41434476,109830.0,109820.0,0.01328149]
[1761207399027,1.22957392,109830.0,109820.0,0.01328149]
[1761207400932,1.44709434,109830.0,109820.0,0.01328149]
[1761207402628,1.33247084,109830.0,109820.0,0.01328149]
[1761207403720,1.44709434,109830.0,109820.0,0.01328149]
[1761207405031,1.19080136,109830.0,109820.0,0.01328149]
[1761207405225,1.32771052,109830.0,109820.0,0.01328149]
[1761207405425,1.21308702,109830.0,109820.0,0.01328149]
[1761207405630,0.89140702,109830.0,109820.0,0.01328149]
[1761207405826,1.21308702,109830.0,109820.0,0.01340903]
[1761207407431,1.14758,109830.0,109820.0,0.01340903]
[1761207410434,1.21308702,109830.0,109820.0,0.01340903]
[1761207411335,1.14758,109830.0,109820.0,0.01340903]
[1761207412838,1.29542712,109830.0,109820.0,0.01340903]
[1761207417353,1.36093414,109830.0,109820.0,0.01340903]
[1761207419754,1.03925414,109830.0,109820.0,0.01340903]
[1761207419954,1.36089414,109830.0,109820.0,0.01340903]
[1761207421152,1.39089414,109830.0,109820.0,0.01340903]
[1761207421351,1.24304702,109830.0,109820.0,0.01340903]
[1761207421555,1.24304702,109830.0,109790.0,0.36918]
[1761207421556,0.05806,109800.0,109790.0,0.36918]
[1761207421743,0.52754712,109800.0,109790.0,0.3926734]
[1761207421949,0.3797,109800.0,109790.0,0.54052052]
[1761207423258,0.3797,109800.0,109790.0,0.59052052]
[1761207423659,0.05806,109800.0,109790.0,0.59052052]
[1761207424055,0.3797,109800.0,109790.0,0.59052052]
[1761207424351,0.3797,109800.0,109790.0,0.59152052]
[1761207424958,0.3797,109800.0,109790.0,0.61506264]
[1761207425154,0.05806,109810.0,109790.0,1.52396926]
[1761207425458,0.32164,109800.0,109790.0,1.13721552]
[1761207425658,0.32164,109800.0,109790.0,1.49801552]
[1761207425853,0.32164,109800.0,109790.0,1.09801552]
[1761207426060,0.32164,109800.0,109790.0,1.18907512]
[1761207426257,0.34354,109800.0,109790.0,1.18907512]
[1761207426457,0.34354,109800.0,109790.0,1.48476936]
[1761207427063,0.05806,109810.0,109800.0,0.0910512]
[1761207427253,0.05806,109810.0,109800.0,0.77941884]
[1761207427254,0.32164,109810.0,109800.0,0.77941884]
[1761207427460,0.32164,109810.0,109800.0,1.11941884]
[1761207427654,0.32164,109810.0,109800.0,1.53396096]
[1761207428159,0.05806,109820.0,109810.0,0.099423]
[1761207428361,0.05806,109820.0,109810.0,1.06941064]
[1761207428562,0.3573,109820.0,109810.0,0.77941064]
[1761207428862,0.3797,109820.0,109810.0,0.77941064]
[1761207429356,0.3797,109820.0,109810.0,0.63156352]
[1761207429553,0.3797,109820.0,109810.0,0.68836764]
[1761207430153,0.3797,109820.0,109810.0,0.54052052]
[1761207431863,0.3797,109820.0,109810.0,0.63156342]
[1761207432062,0.3797,109820.0,109810.0,0.90156342]
[1761207432360,0.05806,109820.0,109810.0,0.63156342]
[1761207432554,0.37966,109820.0,109810.0,1.05941054]
[1761207432750,0.37966,109820.0,109810.0,0.99290976]
[1761207432964,0.37966,109820.0,109810.0,0.84506264]
[1761207434573,0.05806,109820.0,109810.0,0.84506264]
[1761207434765,0.37966,109820.0,109810.0,0.84506264]
[1761207435253,0.37966,109820.0,109810.0,0.93610554]
[1761207435451,0.37966,109820.0,109810.0,1.05941054]
[1761207435655,0.37966,109820.0,109810.0,0.91156342]
[1761207435852,0.37966,109820.0,109810.0,0.93610554]
[1761207436059,0.37966,109820.0,109810.0,1.08395266]
[1761207436561,0.01866,109830.0,109810.0,1.57499556]
[1761207436760,0.06296,109830.0,109820.0,0.66487424]
[1761207436962,0.38452,109830.0,109820.0,1.00836764]
[1761207437568,0.38452,109830.0,109820.0,1.09940234]
[1761207437761,0.38552,109830.0,109820.0,1.09940234]
[1761207437966,0.38652,109830.0,109820.0,1.00836764]
[1761207438960,0.38652,109830.0,109820.0,0.73836764]
[1761207439166,0.38652,109830.0,109820.0,0.68836764]
[1761207439666,0.38552,109830.0,109820.0,0.68836764]
[1761207440066,0.38552,109830.0,109820.0,0.97836764]
[1761207440264,0.38552,109830.0,109820.0,0.68836764]
[1761207440464,0.38552,109830.0,109820.0,0.73836764]
[1761207440762,0.03616,109850.0,109820.0,1.50922326]
[1761207440968,0.37962,109850.0,109840.0,0.40635]
[1761207441259,0.37962,109850.0,109840.0,0.19330763]
[1761207441466,0.37962,109850.0,109840.0,0.04555]
[1761207444264,0.37962,109850.0,109840.0,0.40635]
[1761207444663,0.38058,109850.0,109840.0,0.55410763]
[1761207445269,0.37958,109850.0,109840.0,0.55410763]
[1761207445465,0.37958,109850.0,109840.0,1.34781573]
[1761207445466,0.01556957,109850.0,109840.0,1.34781573]
[1761207445664,0.32152,109850.0,109840.0,1.34781573]
[1761207446168,0.32152,109850.0,109840.0,0.9100581]
[1761207446369,0.44486702,109870.0,109840.0,1.05781573]
[1761207446570,0.49077702,109870.0,109860.0,0.04333]
[1761207446770,0.45145702,109870.0,109860.0,0.04333]
[1761207446972,0.12997702,109870.0,109860.0,0.19108763]
[1761207447160,0.06457,109870.0,109860.0,0.55188763]
[1761207447561,0.06557,109870.0,109860.0,0.55188763]
[1761207447768,0.06657,109870.0,109860.0,0.55188763]
[1761207448165,0.06557,109870.0,109860.0,0.64288913]
[1761207448365,0.06657,109870.0,109860.0,0.55188763]
[1761207448567,0.38805,109870.0,109860.0,0.55188763]
[1761207448773,0.38805,109870.0,109860.0,0.55930763]
[1761207448966,0.38805,109870.0,109860.0,0.41155]
[1761207449173,0.38805,109870.0,109860.0,0.55930763]
[1761207449876,0.38805,109870.0,109860.0,0.40413]
[1761207450075,0.05977,109860.0,109850.0,0.40413]
[1761207450275,0.05977,109860.0,109850.0,0.04333]
[1761207451178,0.06077,109860.0,109850.0,0.04333]
[1761207451475,0.06177,109860.0,109850.0,0.04333]
[1761207453369,0.06177,109860.0,109850.0,0.19108763]
[1761207454580,0.06177,109860.0,109850.0,0.04333]
[1761207454779,0.06177,109860.0,109850.0,0.40413]
[1761207457180,0.06177,109860.0,109850.0,0.41155]
[1761207457480,0.06177,109860.0,109850.0,0.40413]
[1761207457682,0.04791,109860.0,109850.0,0.41155]
[1761207457885,0.04791,109860.0,109850.0,0.55930763]
[1761207459488,0.06177,109860.0,109850.0,0.55930763]
[1761207459781,0.06177,109860.0,109850.0,0.40413]
[1761207460188,0.04791,109860.0,109850.0,0.55930763]
[1761207460489,0.04791,109860.0,109850.0,0.65031633]
[1761207460682,0.06177,109860.0,109850.0,0.65031633]
[1761207460888,0.06177,109860.0,109850.0,0.64289633]
[1761207461285,0.002,109860.0,109850.0,0.93031633]
[1761207461480,0.04791,109860.0,109850.0,0.65031633]
[1761207462384,0.02498,109860.0,109850.0,1.05031633]
[1761207462579,0.002,109860.0,109850.0,1.68171633]
[1761207462781,0.02498,109860.0,109850.0,1.68171633]
[1761207462987,0.04791,109860.0,109850.0,1.68171633]
[1761207463996,0.04791,109860.0,109850.0,1.42171633]
[1761207464290,0.04791,109860.0,109850.0,1.69171633]
[1761207464492,0.02498,109860.0,109850.0,1.69171633]
[1761207464686,0.02498,109860.0,109850.0,1.37171633]
[1761207464891,0.02498,109860.0,109850.0,1.70171633]
[1761207465590,0.002,109860.0,109850.0,1.70171633]
[1761207465784,0.002,109860.0,109850.0,1.84947396]
[1761207466590,0.002,109860.0,109850.0,1.70171633]
[1761207466791,0.002,109860.0,109850.0,1.85011633]
[1761207468000,0.002,109860.0,109850.0,1.99787396]
[1761207469092,0.002,109860.0,109850.0,1.87344056]
[1761207469591,0.002,109860.0,109850.0,2.02119819]
[1761207470496,0.002,109860.0,109850.0,1.87344056]
[1761207470801,0.002,109860.0,109850.0,2.02119819]
[1761207471599,0.002,109860.0,109850.0,1.87344056]
[1761207472595,0.002,109860.0,109850.0,1.64344056]
[1761207472794,0.02498,109860.0,109850.0,1.54344056]
[1761207472992,0.04782,109860.0,109850.0,1.85011633]
[1761207473193,0.02498,109860.0,109850.0,1.87343387]
[1761207473493,0.002,109860.0,109850.0,1.87343387]
[1761207474995,0.002,109860.0,109850.0,2.0211915]
[1761207475190,0.002,109860.0,109850.0,1.87343387]
[1761207476099,0.002,109860.0,109850.0,2.0211915]
[1761207476598,0.002,109860.0,109850.0,1.87343387]
[1761207477091,0.002,109860.0,109850.0,2.0211915]
[1761207477399,0.002,109860.0,109850.0,1.72567624]
[1761207477700,0.002,109860.0,109850.0,2.0211915]
[1761207481499,0.0048,109870.0,109860.0,0.1469262]
[1761207481794,0.0048,109870.0,109860.0,1.09324146]
[1761207484002,0.0048,109870.0,109860.0,0.7977262]
[1761207484203,0.0048,109870.0,109860.0,1.09324146]
[1761207490311,0.0048,109870.0,109860.0,1.10694904]
[1761207490702,0.0048,109870.0,109860.0,1.21190377]
[1761207490895,0.05905,109900.0,109890.0,0.0433]
[1761207491104,0.05905,109900.0,109890.0,0.71332284]
[1761207491303,0.05905,109900.0,109890.0,1.03162284]
[1761207491803,0.04519,109900.0,109890.0,1.12259404]
[1761207492202,0.04519,109900.0,109890.0,1.08259404]
[1761207492402,0.04519,109900.0,109890.0,1.00162284]
[1761207492610,0.04519,109900.0,109890.0,1.09259414]
[1761207492907,0.04519,109900.0,109890.0,1.12259414]
[1761207493331,0.04519,109900.0,109890.0,0.83580816]
[1761207493608,0.04519,109900.0,109890.0,1.15580816]
[1761207493609,0.44519,109900.0,109890.0,1.15580816]
[1761207494409,0.44519,109900.0,109890.0,1.15579329]
[1761207494611,0.44519,109900.0,109890.0,1.1677373]
[1761207496411,0.04519,109900.0,109890.0,1.1677373]
[1761207498107,0.02235,109900.0,109890.0,1.1677373]
[1761207498307,0.04519,109900.0,109890.0,1.1677373]
[1761207498810,0.04999,109910.0,109900.0,0.1468929]
[1761207499113,0.04999,109910.0,109900.0,1.33035811]
[1761207499308,0.06392,109910.0,109900.0,1.33035811]
[1761207499711,0.06392,109910.0,109900.0,1.04035811]
[1761207499912,0.06392,109910.0,109900.0,1.32035811]
[1761207500116,0.06392,109910.0,109900.0,1.04035811]
[1761207500315,0.06392,109910.0,109900.0,1.27035811]
[1761207501008,0.06392,109910.0,109900.0,0.89939521]
[1761207501209,0.06492,109910.0,109900.0,0.94939521]
[1761207501707,0.06492,109910.0,109900.0,1.23939521]
[1761207502014,0.05099,109910.0,109900.0,0.99035831]
[1761207502314,0.05099,109910.0,109900.0,1.33035831]
[1761207502516,0.05099,109910.0,109900.0,1.18260068]
[1761207502706,0.05099,109910.0,109900.0,1.38673354]
[1761207503315,0.06463,109910.0,109900.0,1.38673354]
[1761207503612,0.05099,109910.0,109900.0,1.46769664]
[1761207503814,0.05099,109910.0,109900.0,1.32673354]
[1761207504013,0.05099,109910.0,109900.0,1.03163758]
[1761207504220,0.05099,109910.0,109900.0,1.32673354]
[1761207504517,0.06435,109910.0,109900.0,1.32673354]
[1761207504718,0.06435,109910.0,109900.0,1.31410354]
[1761207507119,0.02815,109910.0,109900.0,1.32673354]
[1761207507318,0.04963,109910.0,109900.0,1.32673354]
[1761207509123,0.02815,109910.0,109900.0,1.32673354]
[1761207509421,0.04963,109910.0,109900.0,1.32673354]
[1761207509820,0.04963,109910.0,109900.0,1.41769664]
[1761207510012,0.04963,109910.0,109900.0,1.47769664]
[1761207511323,0.02725,109910.0,109900.0,1.47769664]
[1761207511620,0.0058,109910.0,109900.0,1.47769664]
[1761207512123,0.04873,109910.0,109900.0,1.38673354]
[1761207512420,0.04873,109910.0,109900.0,1.4101716]
[1761207512621,0.02725,109910.0,109900.0,1.4101716]
[1761207513623,0.04873,109910.0,109900.0,1.4101716]
[1761207514616,0.06209,109910.0,109900.0,1.4101716]
[1761207515625,0.06209,109910.0,109900.0,1.0975416]
[1761207517122,0.06209,109910.0,109900.0,0.48124564]
[1761207517420,0.06209,109910.0,109900.0,1.0574616]
[1761207517727,0.46209,109910.0,109900.0,0.03714564]
[1761207517915,0.60963798,109910.0,109900.0,0.05868564]
[1761207518120,0.60963798,109910.0,109900.0,0.01370758]
[1761207518522,0.60963798,109910.0,109900.0,0.03524758]
[1761207518719,0.60963798,109910.0,109900.0,0.20413556]
[1761207519119,0.60963798,109910.0,109900.0,0.05658758]
[1761207519418,0.60963798,109910.0,109900.0,0.08010375]
[1761207519624,0.60963798,109910.0,109900.0,0.22765173]
[1761207520625,0.46209,109910.0,109900.0,0.37519971]
[1761207520829,0.06209,109910.0,109900.0,0.37519971]
[1761207521020,0.04873,109910.0,109900.0,1.07302687]
[1761207521221,0.04873,109910.0,109900.0,0.77302687]
[1761207521526,0.06209,109910.0,109900.0,0.86039687]
[1761207523234,0.04873,109910.0,109900.0,0.87302687]
[1761207523526,0.04873,109910.0,109900.0,1.19410687]
[1761207523729,0.06209,109910.0,109900.0,1.19410687]
[1761207524328,0.06209,109910.0,109900.0,1.18147687]
[1761207528130,0.06209,109910.0,109900.0,1.19410687]
[1761207528530,0.06209,109910.0,109900.0,1.18147687]
[1761207528734,0.06209,109910.0,109900.0,1.03392889]
[1761207528925,0.06209,109910.0,109900.0,0.88638091]
[1761207529230,0.06209,109910.0,109900.0,1.03392889]
[1761207529634,0.06209,109910.0,109900.0,0.71284889]
[1761207529635,0.60963798,109910.0,109900.0,0.71284889]
[1761207530534,0.60963798,109910.0,109900.0,0.25204889]
[1761207531125,0.0058,109910.0,109900.0,0.81869687]
[1761207531523,0.02725,109910.0,109900.0,1.13966047]
[1761207532531,0.04873,109910.0,109900.0,1.13966047]
[1761207533227,0.04873,109910.0,109900.0,1.13966037]
[1761207533427,0.02725,109910.0,109900.0,1.13966037]
[1761207534531,0.02749,109910.0,109900.0,1.13966037]
[1761207535634,0.02749,109910.0,109900.0,1.04869687]
[1761207535836,0.02749,109910.0,109900.0,0.84456441]
[1761207536030,0.02749,109910.0,109900.0,1.13966037]
[1761207536835,0.0058,109910.0,109900.0,1.8681379]
[1761207537232,0.44023702,109940.0,109930.0,0.0454]
[1761207537233,0.12240702,109940.0,109930.0,0.0454]
[1761207537438,0.12240702,109940.0,109930.0,0.20665556]
[1761207538231,0.0569,109940.0,109930.0,0.23011049]
[1761207539136,0.60544798,109940.0,109930.0,0.08256251]
[1761207539331,0.60544798,109940.0,109930.0,0.23011049]
[1761207539636,0.60644798,109940.0,109930.0,0.23011049]
[1761207540438,0.4589,109940.0,109930.0,0.23011049]
[1761207540837,0.4589,109940.0,109930.0,0.24274049]
[1761207541151,0.4589,109940.0,109930.0,1.24202737]
[1761207541152,0.002,109940.0,109930.0,1.24202737]
[1761207541327,0.002,109940.0,109930.0,1.52202737]
[1761207541533,0.002,109940.0,109930.0,1.22693141]
[1761207541732,0.002,109940.0,109930.0,1.52202737]
[1761207542228,0.002,109940.0,109930.0,0.82693141]
[1761207542433,0.002,109940.0,109930.0,1.12202737]
[1761207542734,0.001,109940.0,109930.0,1.52202737]
[1761207542926,0.002,109940.0,109930.0,1.52202737]
[1761207543339,0.001,109940.0,109930.0,1.52202737]
[1761207543633,0.0048,109950.0,109940.0,0.1446306]
[1761207543837,0.0048,109950.0,109940.0,1.61278212]
[1761207544034,0.0048,109950.0,109940.0,1.63616392]
[1761207545128,0.44423702,109990.0,109960.0,0.09091]
[1761207545331,0.12640702,109990.0,109980.0,0.0454]
[1761207545532,0.12640702,109990.0,109980.0,0.05910758]
[1761207545738,0.20844798,109990.0,109980.0,0.20665556]
[1761207545941,1.45779596,109990.0,109980.0,0.01370758]
[1761207546141,1.52330298,109990.0,109980.0,0.01370758]
[1761207546335,1.24458378,109990.0,109980.0,0.01370758]
[1761207546536,1.45779596,109990.0,109980.0,0.01370758]
[1761207546741,0.0561,109950.0,109940.0,0.4062]
[1761207547339,0.0561,109940.0,109930.0,0.55374798]
[1761207547641,0.0561,109940.0,109920.0,0.17161865]
[1761207547642,0.03482,109930.0,109920.0,0.4062]
[1761207547843,0.0561,109920.0,109910.0,0.55374798]
[1761207548043,0.0561,109920.0,109910.0,0.62711052]